{"text_format":"1","workbook":"xlsx","n_sheets":6,"sheets":["DESCRIPCION CAMPOS","ACREENCIAS","PRESTAMOS POR PAGAR","DEMANDAS O LITIGIOS EJECUTIVOS","DEM. O LIT DIFERENTES A EJECUTI","Hoja1"],"not_rendered":{"charts":0,"images":0,"macros":1,"external_links":0,"defined_names":48,"comments":0,"pivot_tables":0},"unopened":[],"bounds":{"document_bytes":16777216,"sheet_cells":100000,"rows_first":2000,"rows_last":500,"rows_between":2000,"halvings":0,"cell_chars":16384,"cell_head_chars":4096},"cells_cut":0,"cells_raw":0,"read":"whole","date_system":"1900"}

{"sheet":"DESCRIPCION CAMPOS","index":0,"n_rows":247,"n_cols":32,"rows_kept":247,"cut":false,"hidden":false,"merged":[[230,1,231,1],[230,2,231,2],[228,2,229,2],[164,2,166,2],[168,2,171,2],[172,2,174,2],[178,2,180,2],[181,2,182,2],[183,2,184,2],[185,2,186,2],[205,2,207,2],[187,2,188,2],[189,2,198,2],[199,2,200,2],[201,2,202,2],[203,2,204,2],[240,1,241,1],[240,2,241,2],[232,1,233,1],[232,2,233,2],[234,1,235,1],[234,2,235,2],[236,1,237,1],[236,2,237,2],[238,1,239,1],[238,2,239,2],[145,1,147,1],[145,2,147,2],[148,1,149,1],[148,2,149,2],[150,1,151,1],[150,2,151,2],[152,1,161,1],[152,2,161,2],[162,1,163,1],[162,2,163,2],[210,2,226,2],[228,1,229,1],[164,1,166,1],[168,1,171,1],[172,1,174,1],[178,1,180,1],[181,1,182,1],[183,1,184,1],[185,1,186,1],[187,1,188,1],[189,1,198,1],[199,1,200,1],[201,1,202,1],[203,1,204,1],[205,1,207,1],[210,1,226,1],[138,1,141,1],[138,2,141,2],[96,1,97,1],[96,2,97,2],[101,1,103,1],[101,2,103,2],[104,1,105,1],[104,2,105,2],[106,1,117,1],[106,2,117,2],[118,1,119,1],[118,2,119,2],[120,1,129,1],[120,2,129,2],[130,1,131,1],[130,2,131,2],[132,1,134,1],[132,2,134,2],[83,1,84,1],[83,2,84,2],[28,2,32,2],[28,1,32,1],[45,1,81,1],[45,2,81,2],[33,2,44,2],[33,1,44,1],[8,1,17,1],[8,2,17,2],[18,1,19,1],[18,2,19,2],[20,1,21,1],[20,2,21,2],[22,1,23,1],[22,2,23,2],[24,1,25,1],[24,2,25,2],[26,1,27,1],[26,2,27,2],[1,1,3,1],[1,2,3,2],[4,1,5,1],[4,2,5,2],[6,1,7,1],[6,2,7,2]]}
["DESCRIPCIÓN CAMPOS HOJA ACREENCIAS","CAMPOS OBLIGATORIOS SOLICITUD DE ADMISIÓN","CAMPOS OBLIGATORIOS ENTIDAD ADMITIDA EN PROMOCIÓN DE UN ARP",null,"Cédula de ciudadanía",null,null,"Grupo 1",null,101,"Sueldos de nómina","Aportes Parafiscales","Crédito Externo: Bancos comerciales","Honorarios de Concejales","No Aplica",null,null,"Solicitud de Promoción",1,null,"Pendiente",null,null,"Nulidad y restablecimiento del derecho","Judicial"]
["ID: Se trata de un número único de identificación de cada acreencia, asignado por la entidad territorial correspondiente. Es la clave de la tabla de acreencias. Por tanto, no debe repetirse.","X","X",null,"NIT",null,null,"Grupo 2",null,106,"Cesantías e intereses a las cesantías","Créditos con la Nación","Crédito Externo: Entidades de fomento","Comisiones, honorarios y servicios",null,null,null,"Inventario de Acreencias",2,null,"00000000",null,null,"Simple nulidad","Judicial"]
["Se sugiere que el ID de la acreencia esté compuesto por (1) El código asignado en el CHIP de la Contaduría General de la Nación a la entidad territorial donde tiene lugar la reestructuración de pasivos; (2) un guion, \"-\"; y, (3) un número consecutivo del 1 al n, donde \"n\" representa la cuenta del total de las acreencias objeto de la reestructuración de pasivos.",null,null,null,"Registro civil",null,null,"Grupo 3",null,111,"Pensiones por pagar","Cuotas partes pensionales","Crédito Externo: Gobiernos","Proyectos de inversión",null,null,null,null,null,null,null,null,null,"Ordinario laboral","Judicial"]
["Este dato es obligatorio y la plantilla valida que no se repitan los ID de las acreencias.",null,null,null,"Tarjeta de identidad",null,null,"Grupo 4",null,116,"Bonificación Alcalde o Gobernador","Prestación de servicios de salud","Crédito Externo: Inversionistas","Sentencias Judiciales",null,null,null,null,null,null,null,null,null,"Acción contractual","Judicial"]
["SUBCUENTA CONTABLE: Hace referencia al código contable utilizado para el reconocimiento de la acreencia.","X","X",null,"Pasaporte",null,null,null,null,126,"Otras Bonificaciones","Régimen Subsidiado","Crédito Externo: Otras instituciones financieras","Demás Acreedores",null,null,null,null,null,null,null,null,null,"Acciones populares","Judicial"]
["Este dato es obligatorio y la plantilla valida que exista en la relación de acreencias.",null,null,null,"Cédula de extranjería",null,null,null,null,131,"Otras prestaciones sociales","Transferencias por pagar","Crédito Interno: Bancos comerciales",null,null,null,null,null,null,null,null,null,null,"Acción de tutela","Judicial"]
["RAZÓN SOCIAL O APELLIDOS Y NOMBRES: Es la razón social de la entidad pública, o empresa, o persona jurídica, o los nombres y apellidos de la persona natural, a quien pertenece la acreencia que se incluye en el inventario.","X","X",null,"Otro documento de identidad",null,null,null,null,null,"Sentencias Judiciales","Aportes a Fondos pesionales","Crédito Interno: Entidades de fomento",null,null,null,null,null,null,null,null,null,null,"Acciones de grupo","Judicial"]
["Este dato es obligatorio; la plantilla valida que exista en la relación de acreencias y que, cuando aparezca un mismo tipo y número de identificación en varias acreencias, las respectivas razones sociales o nombres estén escritos de forma exactamente igual. Esta validación se hace incluso cuando el mismo acreedor aparezca en varias entidades territoriales.",null,null,null,null,null,null,null,null,null,"Cálculo actuarial","Otras contribuciones de nómina ","Otros conceptos a favor de entidades financieras"]
["TIPO DE IDENTIFICACIÓN: Corresponde al tipo de documento de identificación del acreedor titular de la acreencia que se relaciona.","X","X",null,null,null,null,null,null,null,null,"Otros conceptos"]
["Se admiten  los siguientes tipos de identificación:"]
["*  Cédula de ciudadanía"]
["*  NIT"]
["*  Registro civil"]
["*  Tarjeta de identidad"]
["*  Pasaporte"]
["*  Cédula de extranjería"]
["*  Otro documento de identidad"]
["Este dato es obligatorio y la plantilla valida que exista en la relación de acreencias. No se admiten tipos de identificación distintos a los que se han enumerado más arriba. En caso de que fuera necesario otro tipo de identificación, debe solicitarse la creación de ese metadato a la Dirección de Apoyo Fiscal."]
["NÚMERO DE IDENTIFICACIÓN: Debe escribirse aquí el número de identificación del acreedor a quien pertenece la acreencia relacionada en el renglón del caso. No deben usarse puntos ni comas para la separación de cifras. Debe usarse un guion, \"-\", para separar el número principal y el dígito de verificación del NIT. No debe haber espacios dentro de los números de identificación, ni en la separación de los dígitos de verificación.","X","X"]
["Este dato es obligatorio; la plantilla valida que exista en la relación de acreencias y que, cuando el número de identificación se repita en varias acreencias, esté escrito exactamente igual. Esta validación se hace incluso cuando el mismo acreedor aparece en varias entidades territoriales."]
["DIRECCIÓN: Es la dirección del acreedor titular de la acreencia relacionada en el correspondiente renglón del inventario.","X","X"]
["Este dato es obligatorio en la plantilla, Cuando en un primer momento la entidad territorial no conoce la dirección del acreedor, puede escribir \"Pendiente\" en el renglón respectivo, pero el dato se exige una vez admitida la entidad territorial."]
["TELÉFONO: Es el número del teléfono fijo o celular del acreedor titular de la acreencia relacionada en el correspondiente renglón del inventario.","X","X"]
["Este dato es obligatorio en la plantilla, Cuando en un primer momento la entidad territorial no conoce el número del teléfono del acreedor, puede escribir \"Pendiente\" en el renglón respectivo."]
["CORREO ELECTRÓNICO: Es la dirección de la casilla de correo electrónico del acreedor titular de la acreencia relacionada en el correspondiente renglón del inventario.","X","X"]
["Este dato es obligatorio en la plantilla, Cuando en un primer momento la entidad territorial no conozca la dirección de correo electrónico del acreedor, puede escribir \"Pendiente\" en el renglón respectivo."]
["CARGO: Es el cargo del empleado público o trabajador oficial que es también acreedor de la entidad territorial y titular de la acreencia que se relaciona en el correspondiente renglón del inventario.","X","X"]
["Este dato es obligatorio en la plantilla. Si un acreedor no es empleado público o trabajador oficial en la entidad territorial, se escribirá \"No Aplica\" en la celda correspondiente. Cuando al hacer el inventario inicial de pasivos una entidad territorial no conozca el cargo en ejercicio del cual se dio la creación de una acreencia correspondiente a un acreedor empleado público o trabajador oficial, puede escribir \"Pendiente\" en el renglón respectivo, pero el dato se exige una vez admitida la entidad territorial."]
["BANCO, TIPO DE CUENTA, y, NÚMERO DE CUENTA: Se trata de los datos correspondientes al Banco, Tipo y Número de cuenta bancaria donde el acreedor solicita que se le consignen los dineros correspondientes al pago de su acreencia. Es recomendable que estos datos se tomen directamente de la certificación bancaria que el acreedor entregue a la entidad territorial.",null,"X"]
["Si al momento de construcción del inventario de acreencias  la entidad territorial no conoce estos datos de un acreedor, puede llenarlos de la siguiente forma:"]
["Banco: Pendiente"]
["Tipo de cuenta: Pendiente"]
["Número de cuenta: 00000000"]
["GRUPO: De acuerdo con el Artículo 29 de la Ley 550 de 1999, el inventario de acreencias debe clasificarse según los siguientes grupos: ",null,"X"]
["*  Grupo 1: Laborales y pensionales"]
["*  Grupo 2: Entidades públicas y de seguridad social"]
["*  Grupo 3: Entidades financieras"]
["*  Grupo 4: Demás acreedores"]
["Además, el software admite los siguientes grupos adicionales:",null,null,null,null,null,null,null,null,null,null,null,null,null,null,null,null,null,null,null,null,null,null,null,null,null,null,null,null,null,null,"no llamar grupos, decir conceptos"]
["*  Grupo 5: Demandas, litigios y demás contingencias",null,null,null,null,null,null,null,null,null,null,null,null,null,null,null,null,null,null,null,null,null,null,null,null,null,null,null,null,null,null,"no llamar grupo"]
["*  Grupo 6: Acreencias de reconocimiento extemporáneo, con pago al final del acuerdo de reestructuración de pasivos",null,null,null,null,null,null,null,null,null,null,null,null,null,null,null,null,null,null,null,null,null,null,null,null,null,null,null,null,null,null,"no llamar grupo, no se clasificaron así, pues no quedaron en el inventario"]
["*  Grupo 7: Pasivos causados durante la ejecución del acuerdo de reestructuración de pasivos",null,null,null,null,null,null,null,null,null,null,null,null,null,null,null,null,null,null,null,null,null,null,null,null,null,null,null,null,null,null,"esto debería excluirse, pues no hace parte de este inventario"]
["*  Grupo 8: Fallos y materialización de contingencias en demandas, litigios y demás obligaciones contingentes",null,null,null,null,null,null,null,null,null,null,null,null,null,null,null,null,null,null,null,null,null,null,null,null,null,null,null,null,null,null,"podría confundirse con el de demandas, litigios y demás contingencias"]
["Para que ASA admita cada una de las acreencias, el grupo al cual pertenece debe asignarse usando exactamente el texto que lo identifica."]
["Además, el software admite cargar las Demandas o litigios y los procesos Ejecutivos."]
["SUBGRUPO: Los subgrupos son subconjuntos de los grupos, como lo indica su nombre. Como en el caso anterior, el nombre del subgrupo que identifica a cada acreencia debe ser asignado textualmente.",null,"X"]
["Lo que busca esta subclasificación es permitir acercar el concepto a la prelación de pagos dispuesta en el texto del acuerdo y el escenario financiero"]
["Los subgrupos que se pueden usar son los siguientes:"]
["*  Grupo 1: Laborales y pensionales"]
["·         101: Bonificación Alcalde o Gobernador"]
["·         106: Otras Bonificaciones"]
["·         111: Cesantías e intereses a las cesantías "]
["·         116: Pensiones por pagar"]
["·         121: Sueldos de nómina"]
["·         126: Otras prestaciones sociales"]
["·         131: Sentencias Judiciales"]
["·         133: Cálculo actuarial"]
["*  Grupo 2: Entidades públicas y de seguridad social"]
["·         201: Aportes Parafiscales"]
["·         205: Créditos con la Nación"]
["·         209: Cuotas partes pensionales"]
["·         217: Prestación de servicios de salud"]
["·         221: Régimen Subsidiado"]
["·         225: Transferencias por pagar"]
["·         229: Aportes a Fondos pensionales"]
["·         233: Otras contribuciones de nómina "]
["·         234: Otros Conceptos"]
["*  Grupo 3: Entidades financieras"]
["·         301: Crédito Externo: Bancos comerciales"]
["·         306: Crédito Externo: Entidades de fomento"]
["·         311: Crédito Externo: Gobiernos"]
["·         316: Crédito Externo: Inversionistas"]
["·         325: Crédito Externo: Otras instituciones financieras"]
["·         331: Crédito Interno: Bancos comerciales"]
["·         336: Crédito Interno: Entidades de fomento"]
["·         346: Otros conceptos a favor de entidades financieras"]
["*  Subgrupos de acreedores - Grupo 4"]
["·         401: Honorarios de Concejales"]
["·         406: Comisiones, honorarios y servicios"]
["·         411: Proyectos de inversión"]
["·         413: Sentencias Judiciales"]
["·         416: Demás Acreedores"]
["CONCEPTO DE LA OBLIGACIÓN: Corresponde a la descripción breve del hecho económico o jurídico que generó la obligación a favor del acreedor (por ejemplo “Cesantías definitivas - periodo correspondiente”, “Prestación de servicios profesionales”, etc.), detalle que no se debe limitar a la denominación de la subcuenta contable. ","X","X"]
["UBICACIÓN EN EL ARCHIVO DE LA ET: En este campo se debe incluir la ubicación física donde reposa el expediente de la acreencia. Por ejemplo:","X","X"]
["Secretaría de Hacienda, Estante 71, Caja 17, Carpeta 32."]
["FECHA DEL VENCIMIENTO DE LA OBLIGACIÓN (DD/MM/AA): corresponde a la fecha en la que debe realizarse el pago  a favor del acreedor en condiciones de oportunidad.","X","X"]
["VALOR BRUTO DE LA ACREENCIA: corresponde al valor de la obligación antes de descuentos y deducciones.   En el caso de encontrarse causación de intereses corrientes, de mora, sanciones u otros conceptos, estos deben relacionarse por separado indicando la subcuenta contable y los demás elementos referidos a las acreencias.  ","X","X"]
["DESCUENTOS Y/O DEDUCCIONES: se refiere a la sumatoria de las deducciones y descuentos que se hayan practicado tales como retenciones tributarias, libranzas, embargos, entre otros, y que reduzcan el valor bruto de la obligación. Estos descuentos deben estar registrados individualmente en las cuentas contables dispuestas para tal fin y listarse dentro del inventario siguiendo los mismos lineamientos de las demás acreencias.","X","X"]
["PAGOS PARCIALES EN EFECTIVO: En este espacio se relacionan los pagos parciales en efectivo que la entidad territorial hubiera abonado al acreedor.","X","X"]
["PAGOS PARCIALES POR CRUCE DE CUENTAS: Aquí se incluyen los pagos parciales que la entidad territorial hubiera hecho al acreedor por el método de cruce de cuentas y como de abono a su acreencia.","X","X"]
["PAGOS PARCIALES POR FIDEICOMISO: Se trata de los pagos parciales hechos por la entidad territorial por intermedio de los eventuales fideicomisos o convenios de administración, garantía o  pago que hubiera tenido en la ejecución de convenios u otros contratos (por ejemplo plan de desempeño, o de programas de saneamiento fiscal de Ley 617 de 2000.","X","X"]
["SALDO NETO corresponde al valor de las acreencias después de descuentos y deducciones, pagos parciales en efectivo, pagos parciales por cruce de cuentas y pagos parciales por fideicomiso.","X","X"]
["SANCIONES (y otros reconocimientos distintos a intereses corrientes y de mora): Se relacionan en este campo los valores correspondientes a sanciones y otros reconocimientos atribuibles a la acreencia.","X","X"]
["INTERESES CORRIENTES: El valor incluido aquí corresponde a los intereses corrientes que deban liquidarse a favor del acreedor.","X","X"]
["INTERESES DE MORA: Aquí se incluye el valor correspondiente a los intereses de mora que deban liquidarse a favor del acreedor.","X","X"]
["SALDO NETO DE LA ACREENCIA: El saldo neto de la acreencia es igual al valor del saldo neto de la acreencia (sin reconocimientos) más los intereses corrientes, de mora, las sanciones y los demás reconocimientos a los que haya lugar.","X","X"]
["CÁLCULO ACTUARIAL: En este campo de la plantilla Excel del inventario de acreencias se debe digitar el valor del cálculo actuarial de la entidad territorial, tomado del informe publicado por el FONPET sobre el tema. Al momento de la validación, la plantilla disminuirá ese valor al 25% del cálculo actuarial, que se atribuirá a los derechos de voto de los pensionados.","X","X"]
["El Numeral 3 del Artículo 22 de la Ley 550 de 1999 señala: \"3. Para el cómputo de los votos correspondientes a las acreencias laborales, se tendrán en cuenta las que correspondan a acreencias ciertas. En el caso de los pasivos pensionales, los pensionados tendrán el derecho de voto correspondiente a sus mesadas pensionales causadas e impagadas y al valor que corresponda al veinticinco por ciento (25%) del importe del cálculo actuarial.\""]
["OBSERVACIONES O ACLARACIONES: Este campo permite registrar observaciones y aclaraciones sobre cada una de las acreencias incluidas en el inventario.","X","X"]
[]
["DESCRIPCIÓN CAMPOS HOJA DEMANDAS O LITIGIOS","DOCUMENTOS SOLICITUD DE PROMOCIÓN"," ADMITIDOS INVENTARIO DE ACREENCIAS"]
["ID: Se trata de un número único de identificación de cada acreencia, asignado por la entidad territorial correspondiente. Es la clave de la tabla de acreencias. Por tanto, no debe repetirse.",null,"X"]
["Se sugiere que el ID de la acreencia esté compuesto por (1) El código que se le ha que van a ser objeto de reestructuración de pasivos a cada entidad territorial en el CHIP de la Contaduría General de la Nación; (2) un guion, \"-\"; y, (3) un número consecutivo del 1 al n, donde \"n\" representa la cuenta del total de las acreencias objeto de la reestructuración de pasivos."]
["Este dato es obligatorio y la plantilla valida que no se repitan los ID de las acreencias."]
["SUBCUENTA CONTABLE: Hace referencia al código contable utilizado para el reconocimiento de la contingencia (cuenta de orden o pasivo estimado).",null,"X"]
["Este dato es obligatorio y la plantilla valida que exista en la relación de acreencias."]
["INFORMACIÓN DEL PROCESO",null,"X"]
["CLASE DE PROCESO: Es el tipo de proceso entablado contra la entidad territorial, así:"]
["* Nulidad y restablecimiento del derecho"]
["* Simple nulidad"]
["* Ordinario laboral"]
["* Acción contractual"]
["* Acciones populares"]
["* Acción de tutela"]
["* Acciones de grupo"]
["DESPACHO JUDICIAL: Despacho judicial donde se encuentra en proceso"]
["NÚMERO DEL PROCESO: Se refiere al número del proceso"]
["FECHA DE ADMISIÓN: Indique la fecha de admisión del proceso"]
["NOMBRE O RAZÓN SOCIAL DEMANDANTE: Es la razón social de la entidad pública, o empresa, o persona jurídica, o los nombres y apellidos de la persona natural que ha iniciado el proceso en contra de la entidad territorial.",null,"X"]
["Este dato es obligatorio; la plantilla valida que exista en la relación de acreencias y que, cuando aparezca un mismo tipo y número de identificación en varias acreencias, la razón social o nombre esté escrito exactamente igual. Esta validación se hace incluso cuando el mismo acreedor aparezca en varias entidades territoriales."]
["TIPO DE IDENTIFICACIÓN: Corresponde al tipo de documento de identificación del acreedor titular de la acreencia que se relaciona.",null,"X"]
["Se admiten los siguientes tipos de identificación:"]
["*  Cédula de ciudadanía"]
["*  NIT"]
["*  Registro civil"]
["*  Tarjeta de identidad"]
["*  Pasaporte"]
["*  Cédula de extranjería"]
["*  Otro documento de identidad"]
["Este dato es obligatorio y la plantilla valida que exista en la relación de acreencias. No se admiten tipos de identificación distintos a los que se han enumerado más arriba. En caso de que fuera necesaria la creación de otro tipo de identificación, debe solicitarse la creación de ese metadato a la Dirección de Apoyo Fiscal."]
["NÚMERO DE IDENTIFICACIÓN: Debe escribirse aquí el número de identificación del acreedor a quien pertenece la acreencia relacionada en el renglón del caso. No deben usarse puntos ni comas para la separación de cifras. Debe usarse un guion, \"-\", para separar el número principal y el dígito de verificación del NIT. No debe haber espacios dentro de los números de identificación, ni en la separación de los dígitos de verificación.",null,"X"]
["Este dato es obligatorio; la plantilla valida que exista en la relación de acreencias y que, cuando el número de identificación se repita en varias acreencias, está escrito exactamente igual. Esta validación se hace incluso cuando el mismo acreedor aparece en varias entidades territoriales."]
["DOMICILIO Y DIRECCIÓN: Es la dirección del demandante relacionada en el correspondiente renglón del inventario.",null,"X"]
[]
["Cuando en un primer momento la entidad territorial no conoce la dirección, puede escribir \"Pendiente\" en el renglón respectivo, pero el dato se exige al momento de ordenar pagos."]
["NOMBRE DEL APODERADO: Escriba el nombre del apoderado.",null,"X"]
["VALOR DE LA PRETENSIÓN: Corresponde al cálculo del valor de eventuales obligaciones que surjan ante posibles decisiones judiciales condenatorias que se ordenen dentro del proceso judicial. Este monto deberá estimarse mediante procedimientos de reconocido valor técnico. Así mismo, deben revelarse contablemente en las respectivas cuentas de conformidad con la probabilidad de fallos adversos. ",null,"X"]
["ULTIMA ACTUACIÓN DENTRO DEL PROCESO: Describa la última actuación dentro del proceso.",null,"X"]
["PROBABILIDAD DE FALLO EN CONTRA DE LA ENTIDAD: De acuerdo con la información disponible y al concepto de la Oficina Jurídica de la entidad territorial, corresponde a la estimación de la probabilidad de que el proceso judicial que cursa en contra de la entidad prospere y, por tanto, se vea afectada la situación económica y financiera de la misma.",null,"X"]
["Alta "]
["Media "]
["Baja"]
["CUANTIFICACÓN DE LA POSIBLE CONDENA: :  Escriba el valor de la cuantificación de la posible condena",null,"X"]
[]
["DESCRIPCIÓN CAMPOS HOJA EJECUTIVOS","DOCUMENTOS SOLICITUD DE PROMOCIÓN"," ADMITIDOS INVENTARIO DE ACREENCIAS"]
["ID: Se trata de un número único de identificación de cada acreencia, asignado por la entidad territorial correspondiente. Es la clave de la tabla de acreencias. Por tanto, no debe repetirse.",null,"X"]
["Se sugiere que el ID de la acreencia esté compuesto por (1) El código que se le ha que van a ser objeto de reestructuración de pasivos a cada entidad territorial en el CHIP de la Contaduría General de la Nación; (2) un guion, \"-\"; y, (3) un número consecutivo del 1 al n, donde \"n\" representa la cuenta del total de las acreencias objeto de la reestructuración de pasivos."]
["Este dato es obligatorio y la plantilla valida que no se repitan los ID de las acreencias."]
["SUBCUENTA CONTABLE: Hace referencia al código contable utilizado para el reconocimiento de la acreencia.",null,"X"]
["Este dato es obligatorio y la plantilla valida que exista en la relación de acreencias."]
["NOMBRE O RAZÓN SOCIAL DEMANDANTE: Es la razón social de la entidad pública, o empresa, o persona jurídica, o los nombres y apellidos de la persona natural que ha iniciado el proceso en contra de la entidad territorial.",null,"X"]
["Este dato es obligatorio; la plantilla valida que exista en la relación de acreencias y que, cuando aparezca un mismo tipo y número de identificación en varias acreencias, la razón social o nombre esté escrito exactamente igual. Esta validación se hace incluso cuando el mismo acreedor aparezca en varias entidades territoriales."]
["TIPO DE IDENTIFICACIÓN: Corresponde al tipo de documento de identificación del acreedor titular de la acreencia que se relaciona.",null,"X"]
["Se admiten los siguientes tipos de identificación:"]
["*  Cédula de ciudadanía"]
["*  NIT"]
["*  Registro civil"]
["*  Tarjeta de identidad"]
["*  Pasaporte"]
["*  Cédula de extranjería"]
["*  Otro documento de identidad"]
["Este dato es obligatorio y la plantilla valida que exista en la relación de acreencias. No se admiten tipos de identificación distintos a los que se han enumerado más arriba. En caso de que fuera necesaria la creación de otro tipo de identificación, debe solicitarse la creación de ese metadato a la Dirección de Apoyo Fiscal."]
["NÚMERO DE IDENTIFICACIÓN: Debe escribirse aquí el número de identificación del acreedor a quien pertenece la acreencia relacionada en el renglón del caso. No deben usarse puntos ni comas para la separación de cifras. Debe usarse un guion, \"-\", para separar el número principal y el dígito de verificación del NIT. No debe haber espacios dentro de los números de identificación, ni en la separación de los dígitos de verificación.",null,"X"]
["Este dato es obligatorio; la plantilla valida que exista en la relación de acreencias y que, cuando el número de identificación se repita en varias acreencias, está escrito exactamente igual. Esta validación se hace incluso cuando el mismo acreedor aparece en varias entidades territoriales."]
["DOMICILIO Y DIRECCIÓN: Es la dirección del demandante relacionada en el correspondiente renglón del inventario.",null,"X"]
["Este dato es obligatorio y la plantilla valida que exista en la relación de acreencias y que, cuando la dirección se repita en varias acreencias, esté escrita exactamente igual."]
["Cuando en un primer momento la entidad territorial no conoce la dirección del acreedor, puede escribir \"Pendiente\" en el renglón respectivo, pero el dato se exige al momento de ordenar pagos."]
["ULTIMA ACTUACIÓN DENTRO DEL PROCESO: Describa la última actuación dentro del proceso.",null,"X"]
["VALOR DE LA ACREENCIA: ",null,"X"]
["CAPITAL: Escriba el valor del capital"]
["INTERESES: Escriba el valor de los intereses"]
["COSTAS: Escriba el valor de las Costas"]
["TITULOS JUDICIALES-CE 055 CGN:  Es la relación de títulos judiciales constituidos por la entidad territorial para cubrir el pasivo contingente causado por la demanda.",null,"X"]
["NÚMERO Y FECHA: Escriba el número del título y la fecha"]
["VALOR: Escriba el valor del título."]
["OBSERVACIONES O ACLARACIONES: Este campo permite registrar observaciones y aclaraciones sobre cada una de las acreencias incluidas en el inventario.",null,"X"]
[]
["DESCRIPCIÓN CAMPOS HOJA OBLIGACIONES FINANCIERAS","DOCUMENTOS SOLICITUD DE PROMOCIÓN"," ADMITIDOS INVENTARIO DE ACREENCIAS"]
["ID: Se trata de un número único de identificación de cada acreencia, asignado por la entidad territorial correspondiente. Es la clave de la tabla de acreencias. Por tanto, no debe repetirse.",null,"X"]
["Se sugiere que el ID de la acreencia esté compuesto por (1) El código asignado en el CHIP de la Contaduría General de la Nación a la entidad territorial donde tiene lugar la reestructuración de pasivos; (2) un guion, \"-\"; y, (3) un número consecutivo del 1 al n, donde \"n\" representa la cuenta del total de las acreencias objeto de la reestructuración de pasivos."]
["Este dato es obligatorio y la plantilla valida que no se repitan los ID de las acreencias."]
["SUBCUENTA CONTABLE: Hace referencia al código contable utilizado para el reconocimiento de la acreencia.",null,"X"]
["Este dato es obligatorio y la plantilla valida que exista en la relación de acreencias."]
["NUMERO DE OBLIGACIÓN: Se diligencia con el número que la entidad territorial le ha asignado a la obligación financiera.",null,"X"]
[]
["NUMERO DE PAGARE: Es el número del pagaré asignado por la entidad financiera.",null,"X"]
[]
["RAZÓN SOCIAL O APELLIDOS Y NOMBRES: Es la razón social de la entidad pública, o empresa, o persona jurídica, o los nombres y apellidos de la persona natural, a quien pertenece la acreencia que se incluye en el inventario.",null,"X"]
["Este dato es obligatorio; la plantilla valida que exista en la relación de acreencias y que, cuando aparezca un mismo tipo y número de identificación en varias acreencias, las respectivas razones sociales o nombres estén escritos de forma exactamente igual. Esta validación se hace incluso cuando el mismo acreedor aparezca en varias entidades territoriales."]
["TIPO DE IDENTIFICACIÓN: Corresponde al tipo de documento de identificación del acreedor titular de la acreencia que se relaciona.",null,"X"]
["Se admiten  los siguientes tipos de identificación:"]
["*  Cédula de ciudadanía"]
["*  NIT"]
["*  Registro civil"]
["*  Tarjeta de identidad"]
["*  Pasaporte"]
["*  Cédula de extranjería"]
["*  Otro documento de identidad"]
["Este dato es obligatorio y la plantilla valida que exista en la relación de acreencias. No se admiten tipos de identificación distintos a los que se han enumerado más arriba. En caso de que fuera necesario otro tipo de identificación, debe solicitarse la creación de ese metadato a la Dirección de Apoyo Fiscal."]
["NÚMERO DE IDENTIFICACIÓN: Debe escribirse aquí el número de identificación del acreedor a quien pertenece la acreencia relacionada en el renglón del caso. No deben usarse puntos ni comas para la separación de cifras. Debe usarse un guion, \"-\", para separar el número principal y el dígito de verificación del NIT. No debe haber espacios dentro de los números de identificación, ni en la separación de los dígitos de verificación.",null,"X"]
["Este dato es obligatorio; la plantilla valida que exista en la relación de acreencias y que, cuando el número de identificación se repita en varias acreencias, está escrito exactamente igual. Esta validación se hace incluso cuando el mismo acreedor aparece en varias entidades territoriales."]
["RENTA PIGNORADA: Es la renta de propiedad de la entidad territorial que ésta ha pignorado como garantía de la obligación financiera. ",null,"X"]
[]
["PORCENTAJE PIGNORADO: Es el porcentaje de la renta que la entidad territorial ha entregado en garantía de la obligación financiera.",null,"X"]
[]
["CLASE: Se declara aquí la clase de deuda pública contraída por la entidad territorial, así:",null,"X"]
["§  Deuda pública externa"]
["§  Deuda pública interna"]
["PLAZO: En este campo se incluye el plazo pactado para la deuda, en meses.",null,"X"]
["GRACIA: Aquí se declara el período de gracia concedido para la deuda desde el momento del desembolso, en meses.",null,"X"]
["TASA: En este campo se escribe la tasa de interés genérica pactada entre las entidades territorial y financiera, así:",null,"X"]
["§  DOBAR - 3 m"]
["§  DOBAR - 6 m"]
["§  DTF"]
["§  FIJA"]
["§  IPC"]
["§  JAPANESE LONG TERM"]
["§  LIBOR - 3 m"]
["§  LIBOR - 6 m"]
["§  PREFERENCIAL BID"]
["§  PREFERENCIAL BIRF"]
["§  PRIME - 3 m"]
["§  PRIME - 6 m"]
["§  SEBRA"]
["§  SIBOR"]
["§  SIN TASA"]
["§  UVR"]
["PUNTOS ADICIONALES: \nEs el número de puntos que se han pactado como adicionales a la tasa de interés genérico acordada entre la entidad territorial y la entidad financiera.\n",null,"X"]
["FECHA FIRMA DDMMAA: Es la fecha de la firma del contrato de empréstito pactado entre la entidad territorial y la entidad financiera.",null,"X"]
[]
["VALOR DESEMBOLSO: Es el valor nominal completo del desembolso o desembolsos totales hechos por la entidad financiera a favor de la entidad territorial contra el contrato de empréstito pactado entre ellas.",null,"X"]
[]
["FECHA DESEMBOLSO DDMMAA: Es la fecha del último desembolso hecho por la entidad financiera a favor de la entidad territorial contra el contrato de empréstito pactado entre ellas.",null,"X"]
[]
["FECHA FINAL DEL CONTRATO DDMMAA: Es la fecha final del contrato de empréstito pactado entre la entidad financiera y la entidad territorial.",null,"X"]
[]
["SALDO A FECHA DE CORTE: Es el saldo del capital total (cuotas vencidas y no vencidas) adeudado por la entidad territorial por el contrato de empréstito pactado con la entidad financiera.",null,"X"]
[]
["MONTO VENCIDO - CAPITAL: Es el saldo del capital vencido y adeudado por la entidad territorial por el contrato de empréstito pactado con la entidad financiera.",null,"X"]
[]
["DESDE FECHA DDMMAA: Es la fecha de vencimiento de las cuotas del contrato de empréstito pactado entre la entidad territorial y la financiera.",null,"X"]
[]
["INTERESES CORRIENTES: Es el monto de los intereses corrientes liquidados desde la fecha incluida en el campo anterior, por cuotas vencidas y no vencidas correspondientes al contrato de empréstito pactado entre la entidad territorial y la financiera.",null,"X"]
["DESDE FECHA DDMMAA: Es la fecha desde la cual se deben liquidar los intereses corrientes por cuotas vencidas y no vencidas correspondientes al contrato de empréstito pactado entre la entidad territorial y la financiera.",null,"X"]
["INTERESES MORATORIOS: Es el valor de la liquidación de intereses de mora por cuotas vencidas correspondientes al contrato de empréstito pactado entre la entidad territorial y la financiera.",null,"X"]
["DESDE FECHA DDMMAA: Es la fecha desde la cual se deben liquidar los intereses de mora por cuotas vencidas correspondientes al contrato de empréstito pactado entre la entidad territorial y la financiera.",null,"X"]
["TOTAL VENCIDO: Es la sumatoria del capital vencido más los intereses corrientes y de mora como se han liquidado en los últimos seis campos.",null,"X"]

{"sheet":"ACREENCIAS","index":1,"n_rows":30,"n_cols":25,"rows_kept":30,"cut":false,"hidden":false,"merged":[[6,0,6,24]]}
["ACUERDO DE REESTRUCTURACION DE PASIVOS LEY 550 DE 1999"]
[]
["NOMBRE  ENTIDAD"]
["CODIGO ENTIDAD"]
["FECHA DE CORTE( DD MM AA)"]
[]
["INVENTARIO DE ACREEDORES Y ACREENCIAS"]
[]
[]
["ID","Subcuenta Contable (1)","Razón social o Apellidos y Nombres","Tipo de Identificación","Número Identificación","Dirección","Teléfono","Correo Electrónico","Cargo","Concepto de la Obligación","Documentos Soportes","Ubicación en el archivo de la ET","Fecha del Vencimiento de la Obligación (DD/MM/AA","Valor Bruto de la Acreencia","Descuentos y/o Deducciones","Efectivo","Cruce de Cuentas","Pagos Parciales por Fideicomiso","Saldo Neto","Sanciones","Intereses Corrientes","Intereses de mora","Saldo neto de la acreencia","Calculo Actuarial","Observaciones  o aclaraciones"]
[]
[]
[]
[]
[]
[]
[]
[]
[]
[]
[]
[]
[]
[null,"(1) Recuerde que la relación por  subcuenta debe ser coherente con los saldos reflejados en el Estado de Situación Financiera e Informe Contable (Formulario CGN2015_SALDOS_Y_MOVIMIENTOS_CONVERGENCIA)"]
[]
[]
[]
[null,"FIRMA REPRESENTANTE LEGAL",null,null,null,"FIRMA JEFE AREA FINANCIERA",null,null,null,null,"FIRMA CONTADOR"]
[null,"(Gobernador,  Alcalde, gerente o Director) ",null,null,null,"Nombre y apellidos Completos:",null,null,null,null,"Nombre y apellidos Completos:"]
[null,"Nombre y apellidos completos:",null,null,null,null,null,null,null,null,"T.P. No. "]

{"sheet":"PRESTAMOS POR PAGAR","index":2,"n_rows":50,"n_cols":23,"rows_kept":50,"cut":false,"hidden":false,"merged":[[7,0,7,22],[12,0,13,0]]}
[]
[]
[null,"NOMBRE  ENTIDAD"]
[null,"CODIGO ENTIDAD"]
[]
[null,"FECHA DE CORTE( DD MM AA)"]
[]
["RELACION DE PRÉSTAMOS POR PAGAR (1)"]
[]
[null,null,null,null,null,null,null,null,null,null,null,null,null,"TOTAL CUENTA",null,"$"]
[null,null,null,null,null,null,null,null,null,null,null,null,null,"TOTAL SUBCUENTA",null,"$"]
[]
["SUBCUENTA (2)","No.","No.","Acreedor","RENTA","%%","Clase","Plazo","Gracia","Tasa","* Ptos Adiconales","Fecha Firma","** Valor Desembolso"," ** Fecha Desembolso ","Fecha final del contrato","Saldo a fecha de corte","MONTO VENCIDO (3)"]
[null,"Obligación","Pagaré",null,"PIGNORADA","PIG.",null,null,null,null,null,"DD MM AA",null,"DD MM AA ","DD MM AA ","DD MM AA ","Capital","Desde Fecha (DD MM AA)","Intereses Corrientes ","Desde Fecha (DDMMAA) ","Intereses Moratorios ","Desde Fecha (DDMMAA) ","Total Vencido"]
[null,null,null,null,null,null,null,null,null,null,null,null,null,null,null,null,null,null,null,null,null,null,{"$f":"Q15+S15+U15","v":0}]
[null,null,null,null,null,null,null,null,null,null,null,null,null,null,null,null,null,null,null,null,null,null,{"$f":"Q16+S16+U16","v":0}]
[null,null,null,null,null,null,null,null,null,null,null,null,null,null,null,null,null,null,null,null,null,null,0]
[null,null,null,null,null,null,null,null,null,null,null,null,null,null,null,null,null,null,null,null,null,null,0]
[null,null,null,null,null,null,null,null,null,null,null,null,null,null,null,null,null,null,null,null,null,null,0]
[null,null,null,null,null,null,null,null,null,null,null,null,null,null,null,null,null,null,null,null,null,null,0]
[null,null,null,null,null,null,null,null,null,null,null,null,null,null,null,null,null,null,null,null,null,null,0]
[null,null,null,null,null,null,null,null,null,null,null,null,null,null,null,null,null,null,null,null,null,null,0]
[null,null,null,null,null,null,null,null,null,null,null,null,null,null,null,null,null,null,null,null,null,null,0]
[null,null,null,null,null,null,null,null,null,null,null,null,null,null,null,null,null,null,null,null,null,null,0]
[null,null,null,null,null,null,null,null,null,null,null,null,null,null,null,null,null,null,null,null,null,null,0]
[null,null,null,null,null,null,null,null,null,null,null,null,null,null,null,null,null,null,null,null,null,null,0]
[null,null,null,null,null,null,null,null,null,null,null,null,null,null,null,null,null,null,null,null,null,null,0]
[null,null,null,null,null,null,null,null,null,null,null,null,null,null,null,null,null,null,null,null,null,null,0]
[null,null,null,null,null,null,null,null,null,null,null,null,null,null,null,null,null,null,null,null,null,null,0]
[null,null,null,null,null,null,null,null,null,null,null,null,null,null,null,null,null,null,null,null,null,null,0]
[null,null,null,null,null,null,null,null,null,null,null,null,null,null,null,null,null,null,null,null,null,null,0]
[null,null,null,null,null,null,null,null,null,null,null,null,null,null,null,null,null,null,null,null,null,null,0]
[null,null,null,null,null,null,null,null,null,null,null,null,null,null,null,null,null,null,null,null,null,null,0]
[null,null,null,null,null,null,null,null,null,null,null,null,null,null,null,null,null,null,null,null,null,null,0]
[null,null,null,null,null,null,null,null,null,null,null,null,null,null,null,null,null,null,null,null,null,null,0]
[null,null,null,null,null,null,null,null,null,null,null,null,null,null,null,null,null,null,null,null,null,null,0]
[null,null,null,null,null,null,null,null,null,null,null,null,null,null,null,{"$f":"SUM(P15:P36)","v":0},{"$f":"SUM(Q15:Q36)","v":0},null,{"$f":"SUM(S15:S36)","v":0},null,null,null,0]
[null,"* Si la tasa pactada incluye DTF y puntos adicionales, deben indicarse en esta columna"]
[null,"** Si el Crédito ha tenido más de un desembolso, debe indicarse el valor de cada desembolso y la fecha de este para cada Obligación."]
[null,"(1) Cuentas y Subcuentas correspondientes al grupo 23 del CGC."]
[null,"(2) Recuerde que la relación por cuenta y subcuenta debe ser coherente con los saldos reflejados en los Estados Financieros  e Informe Contable (Formulario CGN2015_SALDOS_Y_MOVIMIENTOS_CONVERGENCIA)"]
[null,"(3) Cuando se trate de varias cuotas de un mismo crédito que se encuentren vencidos deberán relacionarse una a una."]
[]
[]
[]
[]
[]
[null,null,"FIRMA REPRESENTANTE LEGAL",null,null,null,"FIRMA JEFE AREA FINANCIERA",null,null,null,null,"FIRMA CONTADOR"]
[null,null,"(Gobernador,  Alcalde, gerente o Director) ",null,null,null,"Nombre y apellidos Completos:",null,null,null,null,"Nombre y apellidos Completos:"]
[null,null,"Nombre y apellidos completos:",null,null,null,null,null,null,null,null,"T.P. No. "]

{"sheet":"DEMANDAS O LITIGIOS EJECUTIVOS","index":3,"n_rows":52,"n_cols":27,"rows_kept":52,"cut":false,"hidden":false,"merged":[[11,16,11,20],[11,21,11,24],[8,1,8,25]]}
["ACUERDO REESTRUCTURACION DE PASIVOS LEY  550/99"]
[]
[]
["NOMBRE  ENTIDAD"]
["CODIGO ENTIDAD",null,null,null,null,null,null,null,null,null,null,null,null,null,null,null,null,null,null," "]
["FECHA DE CORTE( DD MM AA)"]
[]
[]
[null,"INVENTARIO DE DEMANDAS O LITIGIOS EJECUTIVOS"]
[]
[]
["SUBCUENTA CGC DEL PASIVO (1) - OBLIGACIONES PRESENTES","C.C. O NIT DEMANDANTE","NOMBRE O RAZON SOCIAL DEMANDANTE ","NÚMERO DEL PROCESO","DOMICILIO Y DIRECCION (2)","NOMBRE O RAZON SOCIAL DEL APODERADO","IDENTIFICACIÓN APODERADO","DOCUMENTO QUE ORIGINA LA DEMANDA (En los procesos ejecutivos corresponde al documento que prestó MERITO EJECUTIVO: Ej. resolución)","CONCEPTO CONTENIDO O IDENTIFICABLE EN EL DOCUMENTO QUE ORIGINA LA DEMANDA","FECHA DCTO SOPORTE(QUE ORIGINA LA DEMANDA.)","VALOR DE PASIVO CIERTO (valor contenido en el AUTO DE LIQUIDACION DE CREDITO, si este no existe digitar el valor contenido en el DOCUMENTO QUE ORIGINA LA DEMANDA)","CLASE DE PROCESO (ejecutivo laboral, ejecutivo singular, accion de nulidad, reparacion directa, ordinario laboral, etc.)","ESTADO ACTUAL  PROCESO  JUDICIAL (mandamiento de pago, orden de embargo, medidas cautelares, liquidacion de credito, citacion a conciliacion, decreto de pruebas, presentacion de excepciones, OTROS)","PROBABILIDAD DE FALLO EN CONTRA DE LA ENTIDAD","CONCEPTO DE LA PRETENCIÓN DIFERENTE AL CAPITAL","MONTO ESTIMADO PRETENSIONES ADICIONALES AL CAPITAL - PASIVO ESTIMADO (3) (Cuando NO EXISTE AUTO DE LIQUIDACION DE CREDITO, corresponde a los montos pretendidos por el demandante adicionales al capital, como: intereses, sanciones, indemnizaciones, actualizaciones, costas y agencias en derecho, etc.)","TITULOS JUDICIALES ENTREGADOS  (Consultar el Procedimiento contable para el registro de los procesos judiciales, arbitrajes, conciliaciones extrajudiciales y embargos sobre cuentas bancarias del Marco Normativo para Entidades de Gobierno) ",null,null,null,null,"TITULOS JUDICIALES NO ENTREGADOS (Consultar el Procedimiento contable para el registro de los procesos judiciales, arbitrajes, conciliaciones extrajudiciales y embargos sobre cuentas bancarias del Marco Normativo para Entidades de Gobierno)",null,null,null,"SALDO PENDIENTE DE PAGO (VALOR REGISTRADO EN LA CUENTA DEL PASIVO CORRESPONDIENTE INCLUYENDO 2460 - Créditos judiciales)","OBSERVACIONES O ACLARACIONES"]
[null,null,null,null,null,null,null,null,null,"DD/MM/AA",null,null,null,null,null,null,"Número y fecha","Valor","Entregado a:","Fecha en que fue entregado:","Fuente de recursos","Número y fecha","Valor","A nombre de:","Fuente de recursos"]
[]
[null,null,null,null,null,null,null,null,null,null,null,null,null,null,null,null,null,null,null,null,null,null,null,null,null,{"$f":"+K15-R15","v":0}]
[null,null,null,null,null,null,null,null,null,null,null,null,null,null,null,null,null,null,null,null,null,null,null,null,null,0]
[null,null,null,null,null,null,null,null,null,null,null,null,null,null,null,null,null,null,null,null,null,null,null,null,null,0]
[null,null,null,null,null,null,null,null,null,null,null,null,null,null,null,null,null,null,null,null,null,null,null,null,null,0]
[null,null,null,null,null,null,null,null,null,null,null,null,null,null,null,null,null,null,null,null,null,null,null,null,null,0]
[null,null,null,null,null,null,null,null,null,null,null,null,null,null,null,null,null,null,null,null,null,null,null,null,null,0]
[null,null,null,null,null,null,null,null,null,null,null,null,null,null,null,null,null,null,null,null,null,null,null,null,null,0]
[null,null,null,null,null,null,null,null,null,null,null,null,null,null,null,null,null,null,null,null,null,null,null,null,null,0]
[null,null,null,null,null,null,null,null,null,null,null,null,null,null,null,null,null,null,null,null,null,null,null,null,null,0]
[null,null,null,null,null,null,null,null,null,null,null,null,null,null,null,null,null,null,null,null,null,null,null,null,null,0]
[null,null,null,null,null,null,null,null,null,null,null,null,null,null,null,null,null,null,null,null,null,null,null,null,null,0]
[null,null,null,null,null,null,null,null,null,null,null,null,null,null,null,null,null,null,null,null,null,null,null,null,null,0]
[null,null,null,null,null,null,null,null,null,null,null,null,null,null,null,null,null,null,null,null,null,null,null,null,null,0]
[null,null,null,null,null,null,null,null,null,null,null,null,null,null,null,null,null,null,null,null,null,null,null,null,null,0]
[null,null,null,null,null,null,null,null,null,null,null,null,null,null,null,null,null,null,null,null,null,null,null,null,null,0]
[null,null,null,null,null,null,null,null,null,null,null,null,null,null,null,null,null,null,null,null,null,null,null,null,null,0]
[null,null,null,null,null,null,null,null,null,null,null,null,null,null,null,null,null,null,null,null,null,null,null,null,null,0]
[null,null,null,null,null,null,null,null,null,null,null,null,null,null,null,null,null,null,null,null,null,null,null,null,null,0]
[null,null,null,null,null,null,null,null,null,null,null,null,null,null,null,null,null,null,null,null,null,null,null,null,null,0]
[null,null,null,null,null,null,null,null,null,null,null,null,null,null,null,null,null,null,null,null,null,null,null,null,null,0]
[null,null,null,null,null,null,null,null,null,null,null,null,null,null,null,null,null,null,null,null,null,null,null,null,null,0]
[null,null,null,null,null,null,null,null,null,null,null,null,null,null,null,null,null,null,null,null,null,null,null,null,null,0]
[null,null,null,null,null,null,null,null,null,null,null,null,null,null,null,null,null,null,null,null,null,null,null,null,null,0]
[null,null,null,null,null,null,null,null,null,null,null,null,null,null,null,null,null,null,null,null,null,null,null,null,null,0]
[null,null,null,null,null,null,null,null,null,null,null,null,null,null,null,null,null,null,null,null,null,null,null,null,null,0]
[]
[]
[null,"(1) Recuerde que la relación por  subcuenta debe ser coherente con los saldos reflejados en el Estado de Situación Financiera e Informe Contable (Formulario CGN2015_SALDOS_Y_MOVIMIENTOS_CONVERGENCIA)"]
[null,"(2) En caso de ignorar el domicilio y dirección  el representante legal del ente territorial debe manifestarlo por escrito. No obstante deben  relacionarse otros datos que permitan una comunicación eficiente con el acreedor (Fax; No. de Teléfono etc.). "]
[null,"(3) Aclarar  si se trata de la liquidación del crédito o de la cuantía de la pretensión. "]
[]
[]
[]
[]
[]
[null,"FIRMA REPRESENTANTE LEGAL",null,null,null,"FIRMA JEFE OFICINA JURIDICA",null,null,null,"FIRMA JEFE AREA FINANCIERA",null,null,null,null,null,"FIRMA CONTADOR"]
[null,"(Gobernador,  Alcalde, Gerente o Director) ",null,null,null,null,null,null,null,"Nombre y apellidos Completos:",null,null,null,null,null,"Nombre y apellidos Completos:"]
[null,"Nombre y apellidos completos:",null,null,null,null,null,null,null,null,null,null,null,null,null,"T.P. No. "]

{"sheet":"DEM. O LIT DIFERENTES A EJECUTI","index":4,"n_rows":51,"n_cols":14,"rows_kept":51,"cut":false,"hidden":false,"merged":[[9,0,9,13]]}
["ACUERDO REESTRUCTURACION DE PASIVOS LEY  550/99"]
[]
[]
["NOMBRE  ENTIDAD"]
["CODIGO ENTIDAD"]
["FECHA DE CORTE( DD MM AA)"]
[]
[]
[]
["INVENTARIO DE DEMANDAS O LITIGIOS DIFERENTES A EJECUTIVOS"]
[]
[]
["SUBCUENTA CGC DEL PASIVO (1)","NÚMERO DEL PROCESO","CLASE DE PROCESO ","C.C. O NIT DEMANDANTE","NOMBRE O RAZON SOCIAL DEMANDANTE ","DOMICILIO Y DIRECCION (2)","NOMBRE O RAZON SOCIAL DEL APODERADO","IDENTIFICACIÓN APODERADO","CONCEPTO CONTENIDO EN LA DEMANDA","ESTADO ACTUAL  PROCESO  JUDICIAL ","PROBABILIDAD DE FALLO EN CONTRA DE LA ENTIDAD","MONTO ESTIMADO PRETENSIONES DEL DEMANDANTE ","VALOR CONTABLE REGISTRADO EN  PROVISIONES Y CUENTAS DE ORDEN ","OBSERVACIONES O ACLARACIONES"]
[]
[]
[]
[]
[]
[]
[]
[]
[]
[]
[]
[]
[]
[]
[]
[]
[]
[]
[]
[]
[]
[]
[]
[]
[]
[]
[]
[]
[null,"(1) Recuerde que la relación por  subcuenta debe ser coherente con los saldos reflejados en el Estado de Situación Financiera  e Informe Contable (Formulario CGN2015_SALDOS_Y_MOVIMIENTOS_CONVERGENCIA)"]
[null,"(2) En caso de ignorar el domicilio y dirección  el representante legal del ente territorial debe manifestarlo por escrito. No obstante deben  relacionarse otros datos que permitan una comunicación eficiente con el acreedor (Fax; No. de Teléfono etc.). "]
[]
[]
[]
[]
[]
[null,"FIRMA REPRESENTANTE LEGAL",null,null,"FIRMA JEFE OFICINA JURIDICA",null,null,"FIRMA CONTADOR"]
[null,"(Gobernador,  Alcalde, Gerente o Director) ",null,null,"Nombre y apellidos Completos:",null,null,"Nombre y apellidos Completos:"]
[null,"Nombre y apellidos completos:",null,null,"T.P. No. ",null,null,"T.P. No. "]

{"sheet":"Hoja1","index":5,"n_rows":40,"n_cols":22,"rows_kept":40,"cut":false,"hidden":true,"merged":[]}
["Formulas para condicionales",null,"Asigne rango de fecha","2020-07-27","1980-07-27",{"$f":"+D1-E1","v":14610},null,"fecha Inicial",{"$f":"DATE(YEAR(NOW())-40,MONTH(NOW()),DAY(NOW()))","v":"1980-07-27"},"Fecha Final",{"$f":"DATE(YEAR(NOW())+40,MONTH(NOW()),DAY(NOW()))","v":"2060-07-27"},null,{"$f":"\"La fecha debe estar entre \" & DAY(FECHA_MIN) & \"/\" & MONTH(FECHA_MIN) & \"/\" & YEAR(FECHA_MIN)& \" y \" & DAY(FECHA_MAX) & \"/\" & MONTH(FECHA_MAX) & \"/\" & YEAR(FECHA_MAX)","v":"La fecha debe estar entre 27/7/1980 y 27/7/2060"}]
[]
["demandas o litigios","acrencias","fechas superiores a 20 años"]
[8,8,{"$f":"COUNTIF(ACREENCIAS!#REF!,CONCATENATE(\"<\",TODAY()-$F$1))+COUNTIF(ACREENCIAS!#REF!,CONCATENATE(\"<\",TODAY()-$F$1))+COUNTIF(ACREENCIAS!#REF!,CONCATENATE(\"<\",TODAY()-$F$1))+COUNTIF(ACREENCIAS!#REF!,CONCATENATE(\"<\",TODAY()-$F$1))+COUNTIF(ACREENCIAS!#REF!,CONCATENATE(\"<\",TODAY()-$F$1))+(COUNTIF(ACREENCIAS!#REF!,CONCATENATE(\"<\",TODAY()-$F$1))+COUNTIF(ACREENCIAS!#REF!,CONCATENATE(\"<\",TODAY()-$F$1))+COUNTIF(ACREENCIAS!#REF!,CONCATENATE(\"<\",TODAY()-$F$1))+COUNTIF(ACREENCIAS!#REF!,CONCATENATE(\"<\",TODAY()-$F$1))+COUNTIF(ACREENCIAS!#REF!,CONCATENATE(\"<\",TODAY()-$F$1))+COUNTIF(ACREENCIAS!#REF!,CONCATENATE(\"<\",TODAY()-$F$1))+COUNTIF(ACREENCIAS!#REF!,CONCATENATE(\"<\",TODAY()-$F$1))+COUNTIF(ACREENCIAS!#REF!,CONCATENATE(\"<\",TODAY()-$F$1))+COUNTIF(ACREENCIAS!#REF!,CONCATENATE(\"<\",TODAY()-$F$1))+COUNTIF(ACREENCIAS!#REF!,CONCATENATE(\"<\",TODAY()-$F$1))+COUNTIF(ACREENCIAS!#REF!,CONCATENATE(\"<\",TODAY()-$F$1))+COUNTIF(ACREENCIAS!#REF!,CONCATENATE(\"<\",TODAY()-$F$1))+COUNTIF(ACREENCIAS!#REF!,CONCATENATE(\"<\",TODAY()-$F$1))+COUNTIF(ACREENCIAS!#REF!,CONCATENATE(\"<\",TODAY()-$F$1))+COUNTIF(ACREENCIAS!#REF!,CONCATENATE(\"<\",TODAY()-$F$1))+COUNTIF(ACREENCIAS!#REF!,CONCATENATE(\"<\",TODAY()-$F$1))+COUNTIF(ACREENCIAS!#REF!,CONCATENATE(\"<\",TODAY()-$F$1)))","v":{"$error":"#REF!"}}]
["AE","AH","AK","AN","AQ","AT","AV","AY","BB","BE","BG","BJ","BM","BQ","BV","BY","CB","CE","CH","CK","CN","CR"]
[0,0,{"$f":"COUNTIF(ACREENCIAS!#REF!,CONCATENATE(\"<\",TODAY()-7300))","v":{"$error":"#REF!"}},{"$f":"COUNTIF(ACREENCIAS!#REF!,CONCATENATE(\"<\",TODAY()-7300))","v":{"$error":"#REF!"}},{"$f":"COUNTIF(ACREENCIAS!#REF!,CONCATENATE(\"<\",TODAY()-7300))","v":{"$error":"#REF!"}},{"$f":"(COUNTIF(ACREENCIAS!#REF!,CONCATENATE(\"<\",TODAY()-7300)))","v":{"$error":"#REF!"}},{"$f":"COUNTIF(ACREENCIAS!#REF!,CONCATENATE(\"<\",TODAY()-7300))","v":{"$error":"#REF!"}},{"$f":"COUNTIF(ACREENCIAS!#REF!,CONCATENATE(\"<\",TODAY()-7300))","v":{"$error":"#REF!"}},{"$f":"COUNTIF(ACREENCIAS!#REF!,CONCATENATE(\"<\",TODAY()-7300))","v":{"$error":"#REF!"}},{"$f":"COUNTIF(ACREENCIAS!#REF!,CONCATENATE(\"<\",TODAY()-7300))","v":{"$error":"#REF!"}},{"$f":"COUNTIF(ACREENCIAS!#REF!,CONCATENATE(\"<\",TODAY()-7300))","v":{"$error":"#REF!"}},{"$f":"COUNTIF(ACREENCIAS!#REF!,CONCATENATE(\"<\",TODAY()-7300))","v":{"$error":"#REF!"}},{"$f":"COUNTIF(ACREENCIAS!#REF!,CONCATENATE(\"<\",TODAY()-7300))","v":{"$error":"#REF!"}},{"$f":"COUNTIF(ACREENCIAS!#REF!,CONCATENATE(\"<\",TODAY()-7300))","v":{"$error":"#REF!"}},{"$f":"COUNTIF(ACREENCIAS!#REF!,CONCATENATE(\"<\",TODAY()-7300))","v":{"$error":"#REF!"}},{"$f":"COUNTIF(ACREENCIAS!#REF!,CONCATENATE(\"<\",TODAY()-7300))","v":{"$error":"#REF!"}},{"$f":"COUNTIF(ACREENCIAS!#REF!,CONCATENATE(\"<\",TODAY()-7300))","v":{"$error":"#REF!"}},{"$f":"COUNTIF(ACREENCIAS!#REF!,CONCATENATE(\"<\",TODAY()-7300))","v":{"$error":"#REF!"}},{"$f":"COUNTIF(ACREENCIAS!#REF!,CONCATENATE(\"<\",TODAY()-7300))","v":{"$error":"#REF!"}},{"$f":"COUNTIF(ACREENCIAS!#REF!,CONCATENATE(\"<\",TODAY()-7300))","v":{"$error":"#REF!"}},{"$f":"COUNTIF(ACREENCIAS!#REF!,CONCATENATE(\"<\",TODAY()-7300))","v":{"$error":"#REF!"}},{"$f":"COUNTIF(ACREENCIAS!#REF!,CONCATENATE(\"<\",TODAY()-7300))","v":{"$error":"#REF!"}}]
["Tomar la fecha del dia","Cantidad de Años"]
[1,40]
["Demandas o litigios"]
[{"$f":"COUNTIF(#REF!,CONCATENATE(\"<\",TODAY()-7300))","v":{"$error":"#REF!"}}]
["oblig financiera",{"$f":"SUM(C12:I12)","v":{"$error":"#REF!"}},"O","Q","R","U","W","Y"]
[0,null,{"$f":"COUNTIF(#REF!,CONCATENATE(\"<\",TODAY()-7300))","v":{"$error":"#REF!"}},{"$f":"COUNTIF(#REF!,CONCATENATE(\"<\",TODAY()-7300))","v":{"$error":"#REF!"}},{"$f":"COUNTIF(#REF!,CONCATENATE(\"<\",TODAY()-7300))","v":{"$error":"#REF!"}},{"$f":"COUNTIF(#REF!,CONCATENATE(\"<\",TODAY()-7300))","v":{"$error":"#REF!"}},{"$f":"COUNTIF(#REF!,CONCATENATE(\"<\",TODAY()-7300))","v":{"$error":"#REF!"}},{"$f":"COUNTIF(#REF!,CONCATENATE(\"<\",TODAY()-7300))","v":{"$error":"#REF!"}}]
[]
[]
["valores inferiores a 0",{"$f":"SUM(A17:C17)","v":0}]
["y","t","r"]
[{"$f":"COUNTIF(ACREENCIAS!$U$10:$U$1048576,\"<=0\")","v":0},{"$f":"COUNTIF(ACREENCIAS!$P$10:$P$1048576,\"<=0\")","v":0},{"$f":"COUNTIF(ACREENCIAS!$N$10:$N$1048576,\"<=0\")","v":0}]
[]
[null,null,null,null,"Registros","Tiempo"]
["valores inferiores a 0 demandas","total celdas",null,null,100,28]
[{"$f":"COUNTIF(#REF!,\"<=0\")","v":{"$error":"#REF!"}},null,null,null,80000,{"$f":"+(E21*F20)/E20","v":22400},{"$f":"F21/3600","v":6.2222222222222223}]
[]
["valores menores 0 obliga"]
[null,{"$f":"+SUM(A26:C26)","v":{"$error":"#REF!"}}]
["k","p","s",null,null,null,null,null,null,null,null,null,"registros"]
[{"$f":"COUNTIF(#REF!,\"<=0\")","v":{"$error":"#REF!"}},{"$f":"COUNTIF(#REF!,\"<=0\")","v":{"$error":"#REF!"}},{"$f":"COUNTIF(#REF!,\"<=0\")","v":{"$error":"#REF!"}},null,null,null,null,null,null,null,null,null,14,120]
[null,null,null,null,null,null,null,null,null,null,null,null,{"$f":"(M26*N27)/N26","v":9333.3333333333339},80000]
[null,null,null,null,null,null,null,null,null,null,null,null,{"$f":"M27/3600","v":2.5925925925925926}]
["valores menore a 0 acreencias","s","u","v","w","x","z","ab","ac","af","ai"]
[{"$f":"SUM(B30:K30)","v":{"$error":"#REF!"}},{"$f":"COUNTIF(ACREENCIAS!$O$10:$O$1048576,\"<0\")","v":0},{"$f":"COUNTIF(ACREENCIAS!$Q$10:$Q$1048576,\"<0\")","v":0},{"$f":"COUNTIF(ACREENCIAS!$R$10:$R$1048576,\"<0\")","v":0},{"$f":"COUNTIF(ACREENCIAS!$S$10:$S$1048576,\"<0\")","v":0},{"$f":"COUNTIF(ACREENCIAS!$T$10:$T$1048576,\"<0\")","v":0},{"$f":"COUNTIF(ACREENCIAS!$V$10:$V$1048576,\"<0\")","v":0},{"$f":"COUNTIF(ACREENCIAS!$X$10:$X$1048576,\"<0\")","v":0},{"$f":"COUNTIF(ACREENCIAS!$Y$10:$Y$1048576,\"<0\")","v":0},{"$f":"COUNTIF(ACREENCIAS!#REF!,\"<0\")","v":{"$error":"#REF!"}},{"$f":"COUNTIF(ACREENCIAS!#REF!,\"<0\")","v":{"$error":"#REF!"}}]
[]
[]
[]
[]
["valores menore a 0 demandas y litigios","j","m","O"]
[{"$f":"SUM(B36:K36)","v":{"$error":"#REF!"}},{"$f":"COUNTIF(#REF!,\"<0\")","v":{"$error":"#REF!"}},{"$f":"COUNTIF(#REF!,\"<0\")","v":{"$error":"#REF!"}},{"$f":"COUNTIF(#REF!,\"<0\")","v":{"$error":"#REF!"}}]
[]
[]
["valores menore a 0 OBLIGACIONES","H","I","L","M","T","V","X","Z"]
[{"$f":"SUM(B40:N40)","v":{"$error":"#REF!"}},{"$f":"COUNTIF(#REF!,\"<0\")","v":{"$error":"#REF!"}},{"$f":"COUNTIF(#REF!,\"<0\")","v":{"$error":"#REF!"}},{"$f":"COUNTIF(#REF!,\"<0\")","v":{"$error":"#REF!"}},{"$f":"COUNTIF(#REF!,\"<0\")","v":{"$error":"#REF!"}},{"$f":"COUNTIF(#REF!,\"<0\")","v":{"$error":"#REF!"}},{"$f":"COUNTIF(#REF!,\"<0\")","v":{"$error":"#REF!"}},{"$f":"COUNTIF(#REF!,\"<0\")","v":{"$error":"#REF!"}},{"$f":"COUNTIF(#REF!,\"<0\")","v":{"$error":"#REF!"}}]